Workbook

Sheet MVP
B2: # | C2: Player | D2: Club | E2: Played | F2: Matches Played | G2: Runs | H2: 50's | I2: 100's | J2: Not Outs | K2: Wickets | L2: 3 wicket hauls | M2: 5 wicket hauls | N2: Catches | O2: Run outs (direct hits & assists) | P2: Stumpings | Q2: TOTAL
B3: 1 | C3: Pablo Ferguson | D3: Belgrano | E3: 5 | F3: 5 | G3: =167+58 -> 225 | H3: 3 | J3: 1 | K3: 5 | L3: 1 | N3: 3 | Q3: =(E3*5+G3+H3*5+I3*10+J3*5+K3*10+L3*5+M3*10+N3*5+O3*5+P3*5)/F3 -> 68
B4: 2 | C4: Lautaro Musiani | D4: Lomas | E4: 6 | F4: 6 | G4: 270 | H4: 1 | I4: 1 | J4: 1 | K4: 7 | N4: 2 | P4: 1 | Q4: =(E4*5+G4+H4*5+I4*10+J4*5+K4*10+L4*5+M4*10+N4*5+O4*5+P4*5)/F4 -> 67.5
B5: 3 | C5: Matias Paterlini | D5: San Albano | E5: 6 | F5: 6 | G5: 286 | H5: 1 | J5: 2 | K5: 5 | L5: 0 | N5: 3 | Q5: =(E5*5+G5+H5*5+I5*10+J5*5+K5*10+L5*5+M5*10+N5*5+O5*5+P5*5)/F5 -> 66
B6: 4 | C6: Ambarish | D6: Indian XI | E6: 5 | F6: 5 | G6: 178 | H6: 3 | K6: 6 | L6: 1 | N6: 4 | Q6: =(E6*5+G6+H6*5+I6*10+J6*5+K6*10+L6*5+M6*10+N6*5+O6*5+P6*5)/F6 -> 60.6
B7: 5 | C7: Esteban MacDermott | D7: Lomas | E7: 6 | F7: 6 | G7: 117 | H7: 1 | J7: 1 | K7: 14 | L7: 1 | M7: 1 | N7: 4 | O7: 2 | Q7: =(E7*5+G7+H7*5+I7*10+J7*5+K7*10+L7*5+M7*10+N7*5+O7*5+P7*5)/F7 -> 57 | S7: 5 | T7: 3 wickets hauls
B8: 6 | C8: Abhiram Hr | D8: Hurlingham | E8: 5 | F8: 5 | G8: 114 | K8: 8 | L8: 1 | N8: 4 | P8: 1 | Q8: =(E8*5+G8+H8*5+I8*10+J8*5+K8*10+L8*5+M8*10+N8*5+O8*5+P8*5)/F8 -> 49.8 | S8: 10 | T8: 5 wickets hauls
B9: 7 | C9: Chandra Mohan | D9: Indian XI | E9: 6 | F9: 6 | G9: 137 | J9: 1 | K9: 8 | L9: 2 | N9: 3 | O9: 2 | Q9: =(E9*5+G9+H9*5+I9*10+J9*5+K9*10+L9*5+M9*10+N9*5+O9*5+P9*5)/F9 -> 47.83333333 | S9: 5 | T9: Catch
B10: 8 | C10: Gary Savage | D10: Hurlingham | E10: 5 | F10: 5 | G10: 158 | K10: 5 | N10: 1 | Q10: =(E10*5+G10+H10*5+I10*10+J10*5+K10*10+L10*5+M10*10+N10*5+O10*5+P10*5)/F10 -> 47.6 | S10: 5 | T10: Involved in Run Out
B11: 9 | C11: John CJ Hurley | D11: Belgrano | E11: 6 | F11: 6 | G11: 38 | J11: 2 | K11: 15 | L11: 2 | N11: 3 | Q11: =(E11*5+G11+H11*5+I11*10+J11*5+K11*10+L11*5+M11*10+N11*5+O11*5+P11*5)/F11 -> 42.16666667 | S11: 5 | T11: Stumping
B12: 10 | C12: William Slemmings | D12: San Jorge | E12: 7 | F12: 7 | G12: 75 | J12: 1 | K12: 14 | L12: 2 | N12: 5 | O12: 1 | Q12: =(E12*5+G12+H12*5+I12*10+J12*5+K12*10+L12*5+M12*10+N12*5+O12*5+P12*5)/F12 -> 42.14285714
B13: 11 | C13: Ramiro Escobar | D13: San Albano | E13: 5 | F13: 5 | G13: 106 | K13: 6 | L13: 1 | N13: 1 | Q13: =(E13*5+G13+H13*5+I13*10+J13*5+K13*10+L13*5+M13*10+N13*5+O13*5+P13*5)/F13 -> 40.2 | S13: SE DIVIDEN LOS PUNTOS POR LA CANTIDAD DE PARTIDOS JUGADOS. LOS JUGADORES QUE JUEGUEN UN MINIMO DE 5 PARTIDOS PODRAN PELEAR POR EL MVP.
B14: 12 | C14: Nico Schulte | D14: Hurlingham | E14: 5 | F14: 5 | G14: 144 | H14: 1 | K14: 1 | N14: 2 | Q14: =(E14*5+G14+H14*5+I14*10+J14*5+K14*10+L14*5+M14*10+N14*5+O14*5+P14*5)/F14 -> 38.8
B15: 13 | C15: Steve Nino | D15: Belgrano | E15: 5 | F15: 5 | G15: 116 | H15: 1 | K15: 2 | N15: 3 | O15: 2 | Q15: =(E15*5+G15+H15*5+I15*10+J15*5+K15*10+L15*5+M15*10+N15*5+O15*5+P15*5)/F15 -> 38.2
B16: 15 | C16: Pedro Bruno | D16: San Albano | E16: 6 | F16: 6 | G16: 152 | J16: 1 | K16: 1 | N16: 3 | O16: 2 | Q16: =(E16*5+G16+H16*5+I16*10+J16*5+K16*10+L16*5+M16*10+N16*5+O16*5+P16*5)/F16 -> 37
B17: 16 | C17: Hernan Fennell | D17: Belgrano | E17: 5 | F17: 5 | G17: 90 | H17: 1 | K17: 6 | L17: 1 | Q17: =(E17*5+G17+H17*5+I17*10+J17*5+K17*10+L17*5+M17*10+N17*5+O17*5+P17*5)/F17 -> 37
B18: 17 | C18: Agustin Casime | D18: San Albano | E18: 5 | F18: 5 | G18: 12 | J18: 1 | K18: 12 | L18: 1 | M18: 1 | N18: 1 | Q18: =(E18*5+G18+H18*5+I18*10+J18*5+K18*10+L18*5+M18*10+N18*5+O18*5+P18*5)/F18 -> 36.4
B19: 18 | C19: Hernan Williams | D19: San Albano | E19: 6 | F19: 6 | G19: 138 | H19: 1 | J19: 1 | N19: 7 | P19: 1 | Q19: =(E19*5+G19+H19*5+I19*10+J19*5+K19*10+L19*5+M19*10+N19*5+O19*5+P19*5)/F19 -> 36.33333333
B20: 19 | C20: Daniel Sutton | D20: San Jorge | E20: 7 | F20: 7 | G20: 72 | J20: 1 | K20: 10 | N20: 5 | Q20: =(E20*5+G20+H20*5+I20*10+J20*5+K20*10+L20*5+M20*10+N20*5+O20*5+P20*5)/F20 -> 33.85714286
B21: 20 | C21: Charles Gibson | D21: Lomas | E21: 5 | F21: 5 | G21: 109 | N21: 4 | O21: 1 | P21: 1 | Q21: =(E21*5+G21+H21*5+I21*10+J21*5+K21*10+L21*5+M21*10+N21*5+O21*5+P21*5)/F21 -> 32.8
B22: 21 | C22: Nithin | D22: Indian XI | E22: 6 | F22: 6 | G22: 51 | J22: 2 | K22: 8 | L22: 2 | N22: 2 | Q22: =(E22*5+G22+H22*5+I22*10+J22*5+K22*10+L22*5+M22*10+N22*5+O22*5+P22*5)/F22 -> 31.83333333
B23: 22 | C23: Navin Yadav | D23: Indian XI | E23: 5 | F23: 5 | G23: 98 | J23: 1 | N23: 4 | O23: 1 | Q23: =(E23*5+G23+H23*5+I23*10+J23*5+K23*10+L23*5+M23*10+N23*5+O23*5+P23*5)/F23 -> 30.6
B24: 23 | C24: Pedro Arrighi | D24: Belgrano | E24: 6 | F24: 6 | G24: 42 | K24: 7 | L24: 1 | N24: 6 | O24: 1 | Q24: =(E24*5+G24+H24*5+I24*10+J24*5+K24*10+L24*5+M24*10+N24*5+O24*5+P24*5)/F24 -> 30.33333333
B25: 24 | C25: Ruan van der Merwe | D25: San Jorge | E25: 7 | F25: 7 | G25: 137 | H25: 1 | K25: 2 | N25: 1 | O25: 1 | Q25: =(E25*5+G25+H25*5+I25*10+J25*5+K25*10+L25*5+M25*10+N25*5+O25*5+P25*5)/F25 -> 29.57142857
B26: 25 | C26: Diego Lord | D26: Lomas | E26: 5 | F26: 5 | G26: 11 | K26: 9 | L26: 2 | N26: 1 | O26: 1 | Q26: =(E26*5+G26+H26*5+I26*10+J26*5+K26*10+L26*5+M26*10+N26*5+O26*5+P26*5)/F26 -> 29.2
B27: 26 | C27: Nick Friend | D27: San Jorge | E27: 6 | F27: 6 | G27: 78 | K27: 5 | L27: 1 | N27: 2 | Q27: =(E27*5+G27+H27*5+I27*10+J27*5+K27*10+L27*5+M27*10+N27*5+O27*5+P27*5)/F27 -> 28.83333333
B28: 27 | C28: Rodrigo Scioscia | D28: San Albano | E28: 5 | F28: 5 | G28: 2 | J28: 1 | K28: 9 | L28: 2 | Q28: =(E28*5+G28+H28*5+I28*10+J28*5+K28*10+L28*5+M28*10+N28*5+O28*5+P28*5)/F28 -> 26.4
B29: 28 | C29: Prajyoth | D29: Indian XI | E29: 6 | F29: 6 | G29: 98 | N29: 2 | Q29: =(E29*5+G29+H29*5+I29*10+J29*5+K29*10+L29*5+M29*10+N29*5+O29*5+P29*5)/F29 -> 23
B30: 29 | C30: Kumaresan Kumar | D30: Indian XI | E30: 5 | F30: 5 | G30: 34 | K30: 5 | L30: 1 | Q30: =(E30*5+G30+H30*5+I30*10+J30*5+K30*10+L30*5+M30*10+N30*5+O30*5+P30*5)/F30 -> 22.8
B31: 30 | C31: Nico Vazquez | D31: San Jorge | E31: 5 | F31: 5 | G31: 43 | J31: 1 | K31: 4 | Q31: =(E31*5+G31+H31*5+I31*10+J31*5+K31*10+L31*5+M31*10+N31*5+O31*5+P31*5)/F31 -> 22.6
B32: 31 | C32: Andrew Elliott | D32: Hurlingham | E32: 5 | F32: 5 | G32: 7 | J32: 1 | K32: 6 | M32: 1 | Q32: =(E32*5+G32+H32*5+I32*10+J32*5+K32*10+L32*5+M32*10+N32*5+O32*5+P32*5)/F32 -> 21.4
B33: 32 | C33: Bruno Angeletti | D33: San Jorge | E33: 7 | F33: 7 | G33: 100 | N33: 2 | Q33: =(E33*5+G33+H33*5+I33*10+J33*5+K33*10+L33*5+M33*10+N33*5+O33*5+P33*5)/F33 -> 20.71428571
B34: 33 | C34: Andres Stocks | D34: Belgrano | E34: 5 | F34: 5 | G34: 19 | J34: 1 | K34: 3 | N34: 3 | Q34: =(E34*5+G34+H34*5+I34*10+J34*5+K34*10+L34*5+M34*10+N34*5+O34*5+P34*5)/F34 -> 18.8 | S34: 5 | T34: Playing
B35: 34 | C35: Sathya | D35: Indian XI | E35: 5 | F35: 5 | G35: 44 | J35: 2 | K35: 1 | O35: 1 | Q35: =(E35*5+G35+H35*5+I35*10+J35*5+K35*10+L35*5+M35*10+N35*5+O35*5+P35*5)/F35 -> 18.8
B36: 35 | C36: Boopathi | D36: Indian XI | E36: 6 | F36: 6 | G36: 2 | J36: 2 | K36: 6 | O36: 1 | Q36: =(E36*5+G36+H36*5+I36*10+J36*5+K36*10+L36*5+M36*10+N36*5+O36*5+P36*5)/F36 -> 17.83333333
B37: 36 | C37: Manoj | D37: Indian XI | E37: 5 | F37: 5 | G37: 28 | J37: 1 | K37: 3 | Q37: =(E37*5+G37+H37*5+I37*10+J37*5+K37*10+L37*5+M37*10+N37*5+O37*5+P37*5)/F37 -> 17.6
B38: 37 | C38: Francisco Herran | D38: San Jorge | E38: 5 | F38: 5 | G38: 2 | K38: 4 | N38: 1 | P38: 1 | Q38: =(E38*5+G38+H38*5+I38*10+J38*5+K38*10+L38*5+M38*10+N38*5+O38*5+P38*5)/F38 -> 15.4 | S38: 5 | T38: 3 wickets hauls
B39: 38 | C39: Mike Rowe | D39: San Albano | E39: 6 | F39: 6 | G39: 4 | K39: 5 | L39: 1 | Q39: =(E39*5+G39+H39*5+I39*10+J39*5+K39*10+L39*5+M39*10+N39*5+O39*5+P39*5)/F39 -> 14.83333333
B40: 39 | C40: Martin Whitelegg | D40: San Jorge | E40: 5 | F40: 5 | G40: 32 | Q40: =(E40*5+G40+H40*5+I40*10+J40*5+K40*10+L40*5+M40*10+N40*5+O40*5+P40*5)/F40 -> 11.4 | S40: 10 | T40: 100 scored
B41: 40 | C41: Augusto Mustafa | D41: Belgrano | E41: 5 | F41: 5 | G41: 29 | Q41: =(E41*5+G41+H41*5+I41*10+J41*5+K41*10+L41*5+M41*10+N41*5+O41*5+P41*5)/F41 -> 10.8 | S41: 5 | T41: Not Out
B42: 41 | C42: Nico Serrano | D42: San Albano | E42: 6 | F42: 6 | G42: 19 | J42: 1 | O42: 1 | Q42: =(E42*5+G42+H42*5+I42*10+J42*5+K42*10+L42*5+M42*10+N42*5+O42*5+P42*5)/F42 -> 9.833333333
B43: 42 | C43: Felipe Jimenez | D43: Lomas | E43: 6 | F43: 6 | G43: 4 | J43: 2 | K43: 1 | Q43: =(E43*5+G43+H43*5+I43*10+J43*5+K43*10+L43*5+M43*10+N43*5+O43*5+P43*5)/F43 -> 9
B44: 43 | C44: Lucas Paterlini | D44: San Albano | E44: 4 | F44: 4 | G44: 139 | I44: 1 | J44: 1 | K44: 9 | L44: 1 | O44: 1 | Q44: =(E44*5+G44+H44*5+I44*10+J44*5+K44*10+L44*5+M44*10+N44*5+O44*5+P44*5)/F44 -> 68.5
B45: 44 | C45: Derek Culley | D45: Hurlingham | E45: 2 | F45: 2 | G45: 2 | J45: 1 | K45: 9 | L45: 1 | M45: 1 | N45: 1 | O45: 1 | P45: 1 | Q45: =(E45*5+G45+H45*5+I45*10+J45*5+K45*10+L45*5+M45*10+N45*5+O45*5+P45*5)/F45 -> 68.5
B46: 45 | C46: Martin Siri | D46: Lomas | E46: 3 | F46: 3 | G46: 141 | H46: 1 | N46: 3 | O46: 1 | Q46: =(E46*5+G46+H46*5+I46*10+J46*5+K46*10+L46*5+M46*10+N46*5+O46*5+P46*5)/F46 -> 60.33333333
B47: 46 | C47: Liam Hughes | D47: San Jorge | E47: 4 | F47: 4 | G47: 142 | H47: 2 | K47: 4 | L47: 1 | N47: 2 | Q47: =(E47*5+G47+H47*5+I47*10+J47*5+K47*10+L47*5+M47*10+N47*5+O47*5+P47*5)/F47 -> 56.75
B48: 47 | C48: Daniel Suarez | D48: Lomas | E48: 1 | F48: 1 | G48: 21 | K48: 2 | N48: 1 | Q48: =(E48*5+G48+H48*5+I48*10+J48*5+K48*10+L48*5+M48*10+N48*5+O48*5+P48*5)/F48 -> 51
B49: 48 | C49: Andres Madariya | D49: Hurlingham | E49: 1 | F49: 1 | G49: 36 | N49: 1 | Q49: =(E49*5+G49+H49*5+I49*10+J49*5+K49*10+L49*5+M49*10+N49*5+O49*5+P49*5)/F49 -> 46
B50: 49 | C50: Sam Hatt | D50: Hurlingham | E50: 3 | F50: 3 | G50: 83 | J50: 1 | K50: 1 | N50: 3 | Q50: =(E50*5+G50+H50*5+I50*10+J50*5+K50*10+L50*5+M50*10+N50*5+O50*5+P50*5)/F50 -> 42.66666667
B51: 50 | C51: Pedro Baron | D51: Belgrano | E51: 1 | F51: 1 | G51: 34 | Q51: =(E51*5+G51+H51*5+I51*10+J51*5+K51*10+L51*5+M51*10+N51*5+O51*5+P51*5)/F51 -> 39
B52: 51 | C52: Andres Madariya | D52: Hurlingham | E52: 1 | F52: 1 | G52: 24 | N52: 1 | Q52: =(E52*5+G52+H52*5+I52*10+J52*5+K52*10+L52*5+M52*10+N52*5+O52*5+P52*5)/F52 -> 34
B53: 52 | C53: Ale Ferguson | D53: Belgrano | E53: 4 | F53: 4 | G53: 60 | H53: 1 | K53: 1 | N53: 4 | O53: 1 | P53: 2 | Q53: =(E53*5+G53+H53*5+I53*10+J53*5+K53*10+L53*5+M53*10+N53*5+O53*5+P53*5)/F53 -> 32.5
B54: 53 | C54: Ed Woodhouse-Darry | D54: Hurlingham | E54: 1 | F54: 1 | G54: 21 | J54: 1 | Q54: =(E54*5+G54+H54*5+I54*10+J54*5+K54*10+L54*5+M54*10+N54*5+O54*5+P54*5)/F54 -> 31
B55: 54 | C55: Manish | D55: Indian XI | E55: 3 | F55: 3 | G55: 24 | J55: 2 | K55: 3 | N55: 1 | Q55: =(E55*5+G55+H55*5+I55*10+J55*5+K55*10+L55*5+M55*10+N55*5+O55*5+P55*5)/F55 -> 28
B56: 55 | C56: Martin Cortabarria | D56: Belgrano | E56: 1 | F56: 1 | G56: 23 | Q56: =(E56*5+G56+H56*5+I56*10+J56*5+K56*10+L56*5+M56*10+N56*5+O56*5+P56*5)/F56 -> 28
B57: 56 | C57: Declan Morrison | D57: San Jorge | E57: 1 | F57: 1 | G57: 23 | Q57: =(E57*5+G57+H57*5+I57*10+J57*5+K57*10+L57*5+M57*10+N57*5+O57*5+P57*5)/F57 -> 28
B58: 57 | C58: Andrew Sweerts de Landas Wyborgh | D58: San Jorge | E58: 1 | F58: 1 | G58: 3 | K58: 2 | Q58: =(E58*5+G58+H58*5+I58*10+J58*5+K58*10+L58*5+M58*10+N58*5+O58*5+P58*5)/F58 -> 28
B59: 58 | C59: Jonathan Martinez | D59: San Albano | E59: 2 | F59: 2 | G59: 40 | N59: 1 | Q59: =(E59*5+G59+H59*5+I59*10+J59*5+K59*10+L59*5+M59*10+N59*5+O59*5+P59*5)/F59 -> 27.5
B60: 59 | C60: Marc Rogers | D60: Belgrano | E60: 3 | F60: 3 | G60: 63 | Q60: =(E60*5+G60+H60*5+I60*10+J60*5+K60*10+L60*5+M60*10+N60*5+O60*5+P60*5)/F60 -> 26
B61: 60 | C61: Agustin Husain | D61: Hurlingham | E61: 2 | F61: 2 | G61: 2 | K61: 3 | N61: 2 | Q61: =(E61*5+G61+H61*5+I61*10+J61*5+K61*10+L61*5+M61*10+N61*5+O61*5+P61*5)/F61 -> 26
B62: 61 | C62: Bernardo Irigoyen | D62: Lomas | E62: 4 | F62: 4 | G62: 68 | N62: 1 | O62: 2 | Q62: =(E62*5+G62+H62*5+I62*10+J62*5+K62*10+L62*5+M62*10+N62*5+O62*5+P62*5)/F62 -> 25.75
B63: 62 | C63: Jambie Marlor | D63: Hurlingham | E63: 4 | F63: 4 | G63: 46 | K63: 3 | Q63: =(E63*5+G63+H63*5+I63*10+J63*5+K63*10+L63*5+M63*10+N63*5+O63*5+P63*5)/F63 -> 24
B64: 63 | C64: Axel Horwitz | D64: Belgrano | E64: 3 | F64: 3 | G64: 3 | J64: 2 | K64: 4 | Q64: =(E64*5+G64+H64*5+I64*10+J64*5+K64*10+L64*5+M64*10+N64*5+O64*5+P64*5)/F64 -> 22.66666667
B65: 64 | C65: Martin Taddei | D65: Lomas | E65: 4 | F65: 4 | G65: 10 | K65: 4 | L65: 1 | N65: 2 | Q65: =(E65*5+G65+H65*5+I65*10+J65*5+K65*10+L65*5+M65*10+N65*5+O65*5+P65*5)/F65 -> 21.25
B66: 65 | C66: Tomas Francis | D66: San Albano | E66: 1 | F66: 1 | G66: 11 | N66: 1 | Q66: =(E66*5+G66+H66*5+I66*10+J66*5+K66*10+L66*5+M66*10+N66*5+O66*5+P66*5)/F66 -> 21
B67: 66 | C67: Matt Sarre | D67: San Jorge | E67: 2 | F67: 2 | G67: 11 | K67: 2 | Q67: =(E67*5+G67+H67*5+I67*10+J67*5+K67*10+L67*5+M67*10+N67*5+O67*5+P67*5)/F67 -> 20.5
B68: 67 | C68: Pablo Siracusa | D68: San Albano | E68: 4 | F68: 4 | G68: 21 | J68: 1 | K68: 3 | L68: 1 | Q68: =(E68*5+G68+H68*5+I68*10+J68*5+K68*10+L68*5+M68*10+N68*5+O68*5+P68*5)/F68 -> 20.25
B69: 68 | C69: Inaki Jimenez | D69: Lomas | E69: 3 | F69: 3 | G69: 8 | J69: 1 | K69: 3 | Q69: =(E69*5+G69+H69*5+I69*10+J69*5+K69*10+L69*5+M69*10+N69*5+O69*5+P69*5)/F69 -> 19.33333333
B70: 69 | C70: John Cavernelis | D70: Hurlingham | E70: 1 | F70: 1 | G70: 9 | N70: 1 | Q70: =(E70*5+G70+H70*5+I70*10+J70*5+K70*10+L70*5+M70*10+N70*5+O70*5+P70*5)/F70 -> 19
B71: 70 | C71: Gaston Arizaga | D71: Belgrano | E71: 3 | F71: 3 | G71: 15 | K71: 2 | N71: 1 | Q71: =(E71*5+G71+H71*5+I71*10+J71*5+K71*10+L71*5+M71*10+N71*5+O71*5+P71*5)/F71 -> 18.33333333
B72: 71 | C72: Maggu | D72: Indian XI | E72: 2 | F72: 2 | G72: 21 | N72: 1 | Q72: =(E72*5+G72+H72*5+I72*10+J72*5+K72*10+L72*5+M72*10+N72*5+O72*5+P72*5)/F72 -> 18
B73: 72 | C73: Juan Tissera | D73: Belgrano | E73: 4 | F73: 4 | G73: 36 | K73: 1 | N73: 1 | Q73: =(E73*5+G73+H73*5+I73*10+J73*5+K73*10+L73*5+M73*10+N73*5+O73*5+P73*5)/F73 -> 17.75
B74: 73 | C74: Hassan | D74: Lomas | E74: 2 | F74: 2 | J74: 1 | K74: 2 | Q74: =(E74*5+G74+H74*5+I74*10+J74*5+K74*10+L74*5+M74*10+N74*5+O74*5+P74*5)/F74 -> 17.5
B75: 74 | C75: Matteo Arrighi | D75: Belgrano | E75: 3 | F75: 3 | G75: 31 | J75: 1 | Q75: =(E75*5+G75+H75*5+I75*10+J75*5+K75*10+L75*5+M75*10+N75*5+O75*5+P75*5)/F75 -> 17
B76: 75 | C76: Will Mattsmate | D76: San Jorge | E76: 1 | F76: 1 | G76: 7 | J76: 1 | Q76: =(E76*5+G76+H76*5+I76*10+J76*5+K76*10+L76*5+M76*10+N76*5+O76*5+P76*5)/F76 -> 17
B77: 76 | C77: Martin Peralta | D77: Lomas | E77: 3 | F77: 3 | G77: 29 | J77: 1 | Q77: =(E77*5+G77+H77*5+I77*10+J77*5+K77*10+L77*5+M77*10+N77*5+O77*5+P77*5)/F77 -> 16.33333333
B78: 77 | C78: Mungito Haldane | D78: San Jorge | E78: 2 | F78: 2 | G78: 2 | N78: 4 | Q78: =(E78*5+G78+H78*5+I78*10+J78*5+K78*10+L78*5+M78*10+N78*5+O78*5+P78*5)/F78 -> 16
B79: 78 | C79: Alex Cherry | D79: Hurlingham | E79: 1 | F79: 1 | G79: 1 | K79: 1 | Q79: =(E79*5+G79+H79*5+I79*10+J79*5+K79*10+L79*5+M79*10+N79*5+O79*5+P79*5)/F79 -> 16
B80: 79 | C80: Juan Benitez | D80: San Albano | E80: 2 | F80: 2 | G80: 16 | N80: 1 | Q80: =(E80*5+G80+H80*5+I80*10+J80*5+K80*10+L80*5+M80*10+N80*5+O80*5+P80*5)/F80 -> 15.5
B81: 80 | C81: Sridhar | D81: Indian XI | E81: 4 | F81: 4 | G81: 34 | N81: 1 | Q81: =(E81*5+G81+H81*5+I81*10+J81*5+K81*10+L81*5+M81*10+N81*5+O81*5+P81*5)/F81 -> 14.75
B82: 81 | C82: Will Beckingsale | D82: Hurlingham | E82: 3 | F82: 3 | G82: 17 | N82: 2 | Q82: =(E82*5+G82+H82*5+I82*10+J82*5+K82*10+L82*5+M82*10+N82*5+O82*5+P82*5)/F82 -> 14
B83: 82 | C83: Sunny Singh | D83: Indian XI | E83: 1 | F83: 1 | G83: 9 | Q83: =(E83*5+G83+H83*5+I83*10+J83*5+K83*10+L83*5+M83*10+N83*5+O83*5+P83*5)/F83 -> 14
B84: 83 | C84: Santi Duggan | D84: San Jorge | E84: 3 | F84: 3 | G84: 0 | J84: 1 | K84: 2 | Q84: =(E84*5+G84+H84*5+I84*10+J84*5+K84*10+L84*5+M84*10+N84*5+O84*5+P84*5)/F84 -> 13.33333333
B85: 84 | C85: Tomas Marinozzi | D85: San Jorge | E85: 2 | F85: 2 | G85: 15 | Q85: =(E85*5+G85+H85*5+I85*10+J85*5+K85*10+L85*5+M85*10+N85*5+O85*5+P85*5)/F85 -> 12.5
B86: 85 | C86: Nick King | D86: Lomas | E86: 3 | F86: 3 | G86: 11 | N86: 1 | O86: 1 | Q86: =(E86*5+G86+H86*5+I86*10+J86*5+K86*10+L86*5+M86*10+N86*5+O86*5+P86*5)/F86 -> 12
B87: 86 | C87: Nikolas Opfermann | D87: San Jorge | E87: 2 | F87: 2 | G87: 4 | N87: 2 | Q87: =(E87*5+G87+H87*5+I87*10+J87*5+K87*10+L87*5+M87*10+N87*5+O87*5+P87*5)/F87 -> 12
B88: 87 | C88: Gonzalo Husain | D88: Hurlingham | E88: 1 | F88: 1 | G88: 7 | Q88: =(E88*5+G88+H88*5+I88*10+J88*5+K88*10+L88*5+M88*10+N88*5+O88*5+P88*5)/F88 -> 12
B89: 88 | C89: Manu Costa | D89: San Jorge | E89: 1 | F89: 1 | G89: 7 | Q89: =(E89*5+G89+H89*5+I89*10+J89*5+K89*10+L89*5+M89*10+N89*5+O89*5+P89*5)/F89 -> 12
B90: 89 | C90: Horacio Esperon | D90: Hurlingham | E90: 2 | F90: 2 | G90: 3 | N90: 2 | Q90: =(E90*5+G90+H90*5+I90*10+J90*5+K90*10+L90*5+M90*10+N90*5+O90*5+P90*5)/F90 -> 11.5
B91: 90 | C91: Martin Hemmingsen | D91: Hurlingham | E91: 1 | F91: 1 | G91: 1 | N91: 1 | Q91: =(E91*5+G91+H91*5+I91*10+J91*5+K91*10+L91*5+M91*10+N91*5+O91*5+P91*5)/F91 -> 11
B92: 91 | C92: Diego Fuller | D92: Hurlingham | E92: 1 | F92: 1 | G92: 6 | Q92: =(E92*5+G92+H92*5+I92*10+J92*5+K92*10+L92*5+M92*10+N92*5+O92*5+P92*5)/F92 -> 11
B93: 92 | C93: Magesh S | D93: Indian XI | E93: 3 | F93: 3 | G93: 12 | O93: 1 | Q93: =(E93*5+G93+H93*5+I93*10+J93*5+K93*10+L93*5+M93*10+N93*5+O93*5+P93*5)/F93 -> 10.66666667
B94: 93 | C94: Nigel Worsnop | D94: Hurlingham | E94: 4 | F94: 4 | G94: 21 | Q94: =(E94*5+G94+H94*5+I94*10+J94*5+K94*10+L94*5+M94*10+N94*5+O94*5+P94*5)/F94 -> 10.25
B95: 94 | C95: Enrique Roulet | D95: Belgrano | E95: 4 | F95: 4 | G95: 5 | K95: 1 | N95: 1 | Q95: =(E95*5+G95+H95*5+I95*10+J95*5+K95*10+L95*5+M95*10+N95*5+O95*5+P95*5)/F95 -> 10
B96: 95 | C96: Matias Gibson | D96: Lomas | E96: 2 | F96: 2 | G96: 10 | Q96: =(E96*5+G96+H96*5+I96*10+J96*5+K96*10+L96*5+M96*10+N96*5+O96*5+P96*5)/F96 -> 10
B97: 96 | C97: Denver Gregory | D97: Hurlingham | E97: 1 | F97: 1 | G97: 0 | J97: 1 | Q97: =(E97*5+G97+H97*5+I97*10+J97*5+K97*10+L97*5+M97*10+N97*5+O97*5+P97*5)/F97 -> 10
B98: 97 | C98: James Dougall | D98: Hurlingham | E98: 1 | F98: 1 | G98: 0 | J98: 1 | Q98: =(E98*5+G98+H98*5+I98*10+J98*5+K98*10+L98*5+M98*10+N98*5+O98*5+P98*5)/F98 -> 10
B99: 98 | C99: Pawan Punjabi | D99: Lomas | E99: 1 | F99: 1 | O99: 1 | Q99: =(E99*5+G99+H99*5+I99*10+J99*5+K99*10+L99*5+M99*10+N99*5+O99*5+P99*5)/F99 -> 10
B100: 99 | C100: Sathi | D100: Lomas | E100: 1 | F100: 1 | N100: 1 | Q100: =(E100*5+G100+H100*5+I100*10+J100*5+K100*10+L100*5+M100*10+N100*5+O100*5+P100*5)/F100 -> 10
B101: 100 | C101: Sofi Retamales | D101: San Jorge | E101: 1 | F101: 1 | G101: 0 | J101: 1 | Q101: =(E101*5+G101+H101*5+I101*10+J101*5+K101*10+L101*5+M101*10+N101*5+O101*5+P101*5)/F101 -> 10
B102: 101 | C102: Archie Burgess | D102: San Jorge | E102: 1 | F102: 1 | G102: 0 | J102: 1 | Q102: =(E102*5+G102+H102*5+I102*10+J102*5+K102*10+L102*5+M102*10+N102*5+O102*5+P102*5)/F102 -> 10
B103: 102 | C103: Mark Robson | D103: Hurlingham | E103: 2 | F103: 2 | G103: 9 | Q103: =(E103*5+G103+H103*5+I103*10+J103*5+K103*10+L103*5+M103*10+N103*5+O103*5+P103*5)/F103 -> 9.5
B104: 103 | C104: Carlos Pelandini | D104: San Albano | E104: 4 | F104: 4 | G104: 7 | N104: 2 | Q104: =(E104*5+G104+H104*5+I104*10+J104*5+K104*10+L104*5+M104*10+N104*5+O104*5+P104*5)/F104 -> 9.25
B105: 104 | C105: Mani Balaji | D105: Indian XI | E105: 2 | F105: 2 | G105: 2 | O105: 1 | Q105: =(E105*5+G105+H105*5+I105*10+J105*5+K105*10+L105*5+M105*10+N105*5+O105*5+P105*5)/F105 -> 8.5
B106: 105 | C106: Marcos Morales | D106: Lomas | E106: 2 | F106: 2 | G106: 1 | N106: 1 | Q106: =(E106*5+G106+H106*5+I106*10+J106*5+K106*10+L106*5+M106*10+N106*5+O106*5+P106*5)/F106 -> 8
B107: 106 | C107: Pablo Roca | D107: Lomas | E107: 1 | F107: 1 | G107: 3 | Q107: =(E107*5+G107+H107*5+I107*10+J107*5+K107*10+L107*5+M107*10+N107*5+O107*5+P107*5)/F107 -> 8
B108: 107 | C108: Chris Gregory | D108: Hurlingham | E108: 2 | F108: 2 | G108: 0 | N108: 1 | Q108: =(E108*5+G108+H108*5+I108*10+J108*5+K108*10+L108*5+M108*10+N108*5+O108*5+P108*5)/F108 -> 7.5
B109: 108 | C109: Varun | D109: Indian XI | E109: 2 | F109: 2 | G109: 5 | Q109: =(E109*5+G109+H109*5+I109*10+J109*5+K109*10+L109*5+M109*10+N109*5+O109*5+P109*5)/F109 -> 7.5
B110: 109 | C110: Manu Esperon | D110: Lomas | E110: 2 | F110: 2 | G110: 0 | N110: 1 | Q110: =(E110*5+G110+H110*5+I110*10+J110*5+K110*10+L110*5+M110*10+N110*5+O110*5+P110*5)/F110 -> 7.5
B111: 110 | C111: Tomas Birnie | D111: San Albano | E111: 3 | F111: 3 | G111: 2 | O111: 1 | Q111: =(E111*5+G111+H111*5+I111*10+J111*5+K111*10+L111*5+M111*10+N111*5+O111*5+P111*5)/F111 -> 7.333333333
B112: 111 | C112: Rick | D112: San Jorge | E112: 1 | F112: 1 | G112: 2 | Q112: =(E112*5+G112+H112*5+I112*10+J112*5+K112*10+L112*5+M112*10+N112*5+O112*5+P112*5)/F112 -> 7
B113: 112 | C113: Martin Rost | D113: Lomas | E113: 2 | F113: 2 | G113: 3 | Q113: =(E113*5+G113+H113*5+I113*10+J113*5+K113*10+L113*5+M113*10+N113*5+O113*5+P113*5)/F113 -> 6.5
B114: 113 | C114: Rodrigo Ventura | D114: Lomas | E114: 1 | F114: 1 | G114: 1 | Q114: =(E114*5+G114+H114*5+I114*10+J114*5+K114*10+L114*5+M114*10+N114*5+O114*5+P114*5)/F114 -> 6
B115: 114 | C115: Alex Kiely | D115: San Jorge | E115: 1 | F115: 1 | G115: 1 | Q115: =(E115*5+G115+H115*5+I115*10+J115*5+K115*10+L115*5+M115*10+N115*5+O115*5+P115*5)/F115 -> 6
B116: 115 | C116: Roland Huxley | D116: San Jorge | E116: 1 | F116: 1 | G116: 1 | Q116: =(E116*5+G116+H116*5+I116*10+J116*5+K116*10+L116*5+M116*10+N116*5+O116*5+P116*5)/F116 -> 6
B117: 116 | C117: Alex Lambert | D117: San Jorge | E117: 3 | F117: 3 | G117: 2 | Q117: =(E117*5+G117+H117*5+I117*10+J117*5+K117*10+L117*5+M117*10+N117*5+O117*5+P117*5)/F117 -> 5.666666667
B118: 117 | C118: Nacho Fermani | D118: Hurlingham | E118: 2 | F118: 2 | G118: 1 | Q118: =(E118*5+G118+H118*5+I118*10+J118*5+K118*10+L118*5+M118*10+N118*5+O118*5+P118*5)/F118 -> 5.5
B119: 118 | C119: Alan Kirschbaum | D119: Belgrano | E119: 1 | F119: 1 | Q119: =(E119*5+G119+H119*5+I119*10+J119*5+K119*10+L119*5+M119*10+N119*5+O119*5+P119*5)/F119 -> 5
B120: 119 | C120: Francisco Alvarez | D120: Belgrano | E120: 1 | F120: 1 | G120: 0 | Q120: =(E120*5+G120+H120*5+I120*10+J120*5+K120*10+L120*5+M120*10+N120*5+O120*5+P120*5)/F120 -> 5
B121: 120 | C121: Praveen | D121: Indian XI | E121: 1 | F121: 1 | Q121: =(E121*5+G121+H121*5+I121*10+J121*5+K121*10+L121*5+M121*10+N121*5+O121*5+P121*5)/F121 -> 5
B122: 121 | C122: Anish | D122: Lomas | E122: 1 | F122: 1 | G122: 0 | Q122: =(E122*5+G122+H122*5+I122*10+J122*5+K122*10+L122*5+M122*10+N122*5+O122*5+P122*5)/F122 -> 5
B123: 122 | C123: Sebastian Menis | D123: Lomas | E123: 1 | F123: 1 | G123: 0 | Q123: =(E123*5+G123+H123*5+I123*10+J123*5+K123*10+L123*5+M123*10+N123*5+O123*5+P123*5)/F123 -> 5
B124: 123 | C124: Guillerma Mustafa | D124: San Jorge | E124: 1 | F124: 1 | Q124: =(E124*5+G124+H124*5+I124*10+J124*5+K124*10+L124*5+M124*10+N124*5+O124*5+P124*5)/F124 -> 5

Sheet Hoja1
